fUST/lending_fUST_20251222
["ID","MTS","AMOUNT","RATE_DAILY","PERIOD"]
[399472610,1766397872951,1751.5089528,9.789e-05,2]
[399472611,1766397873041,1751.5089528,9.789e-05,2]
[399472612,1766397885400,1247.95012887,9.789e-05,2]
[399472613,1766397885429,1247.95012887,9.789e-05,2]
[399472614,1766397885471,1247.95012887,9.789e-05,2]
[399472615,1766397885506,1247.95012887,9.789e-05,2]
[399472616,1766397885549,1247.95012887,9.789e-05,2]
[399472617,1766397885587,1247.95012887,9.789e-05,2]
[399472618,1766397885703,1247.95012887,9.789e-05,2]
[399472619,1766397885736,1247.95012887,9.789e-05,2]
[399472620,1766397885823,1247.95012887,9.789e-05,2]
[399472621,1766397885880,1247.95012887,9.789e-05,2]
[399472622,1766397885910,1247.95012887,9.789e-05,2]
[399472623,1766397886101,1247.95012887,9.789e-05,2]
[399472624,1766397886179,1247.95012887,9.789e-05,2]
[399472625,1766397908548,1521.21439653,9.789e-05,2]
[399472626,1766397908609,1521.21439653,9.789e-05,2]
[399472627,1766397908678,1391.52747845,9.789e-05,2]
[399472628,1766397929562,270.84,8.397e-05,2]
[399472629,1766397929914,541.68,8.797e-05,2]
[399472630,1766397930359,687.48,9.197e-05,2]
[399472631,1766397930383,125.04,9.197e-05,2]
[399472633,1766398008651,250.16,8.389e-05,2]
[399472634,1766398009017,210.34,8.788e-05,2]
[399472635,1766398009040,289.98,8.788e-05,2]
[399472636,1766398092091,240.61,8.204e-05,2]
[399472637,1766398092151,12.41,8.595e-05,2]
[399472638,1766398092174,216.8089034,8.595e-05,2]
[399472639,1766398092198,251.9910966,8.595e-05,2]
[399472641,1766398170830,3.70106032,8.396e-05,2]
[399472649,1766398232422,-227.71893968,8.396e-05,2]
[399472651,1766398232432,-269.7578334,8.396e-05,2]
[399472674,1766398238382,-268.2421666,8.396e-05,2]
[399472675,1766398238393,-291.35146176,8.795e-05,2]
[399472680,1766398238496,-171.48853824,8.795e-05,2]
[399472681,1766398238506,-694.26,9.195e-05,2]
[399472682,1766398238516,-250.57831378,9.387e-05,2]
[399472683,1766398238526,-925.68,9.595e-05,2]
[399472684,1766398238537,-6539.0235877,9.835e-05,2]
[399472685,1766398238551,-244.86346696,9.835e-05,2]
[399472687,1766398238561,-153.54012156,9.927e-05,2]
[399472688,1766398238574,-146.45987844,9.927e-05,2]
[399472689,1766398238584,-922.93068313,9.927e-05,2]
[399472690,1766398239451,-15.16109552,9.927e-05,2]
[399472715,1766398240691,-291.57248318,9.927e-05,2]
[399472717,1766398240701,-1229.66426183,9.927e-05,2]
[399472719,1766398240711,-1229.66426183,9.927e-05,2]
[399472721,1766398240720,-1229.66426183,9.927e-05,2]
[399472723,1766398240729,-1229.66426183,9.927e-05,2]
[399472725,1766398240738,-1229.66426183,9.927e-05,2]
[399472727,1766398240747,-1229.66426183,9.927e-05,2]
[399472729,1766398240756,-1229.66426183,9.927e-05,2]
[399472731,1766398240765,-1229.66426183,9.927e-05,2]
[399472733,1766398240774,-1229.66426183,9.927e-05,2]
[399472735,1766398240787,-205.1237296,9.927e-05,2]
[399472986,1766398243539,-290.87174554,9.927e-05,2]
[399472989,1766398243555,-733.66878669,9.927e-05,2]
[399472991,1766398243569,-266.33121331,9.927e-05,2]
[399472994,1766398243583,-963.33304852,9.927e-05,2]
[399472996,1766398243597,-1229.66426183,9.927e-05,2]
[399472999,1766398243608,-107.82890965,9.927e-05,2]
[399473283,1766398246542,-1121.83535218,9.927e-05,2]
[399473285,1766398246553,-381.11464782,9.927e-05,2]
[399473296,1766398246650,-848.54961401,9.927e-05,2]
[399473298,1766398246662,-1229.66426183,9.927e-05,2]
[399473301,1766398246673,-769.29768229,9.927e-05,2]
[399473915,1766399433442,-321.0,8.33e-05,2]
[399473951,1766399438824,-216.0,8.33e-05,2]
[399473953,1766399438834,-255.6351281,8.33e-05,2]
[399473955,1766399438843,-403.93,8.953e-05,2]
[399473957,1766399438852,-1200.0,9.019e-05,2]
[399473959,1766399438861,-300.0,9.019e-05,2]
[399473961,1766399438870,-385.17979848,9.02e-05,2]
[399473963,1766399438880,-1540.71919392,9.02e-05,2]
[399473965,1766399438889,-744.86712303,9.02e-05,2]
[399473967,1766399438903,-300.0,9.359e-05,2]
[399473969,1766399438912,-500.0,9.359e-05,2]
[399473971,1766399438921,-500.0,9.359e-05,2]
[399473973,1766399438931,-234.72091311,9.359e-05,2]
[399473974,1766399438940,-500.0,9.359e-05,2]
[399473975,1766399438950,-500.0,9.359e-05,2]
[399473976,1766399438960,-500.0,9.359e-05,2]
[399473977,1766399438969,-500.0,9.359e-05,2]
[399473978,1766399438978,-500.0,9.359e-05,2]
[399473979,1766399438988,-500.0,9.359e-05,2]
[399473980,1766399438997,-500.0,9.359e-05,2]
[399473981,1766399439006,-500.0,9.359e-05,2]
[399473982,1766399439015,-500.0,9.359e-05,2]
[399473983,1766399439024,-353.42990284,9.359e-05,2]
[399473984,1766399439034,-500.0,9.359e-05,2]
[399473985,1766399439043,-500.0,9.359e-05,2]
[399473986,1766399439052,-500.0,9.359e-05,2]
[399473987,1766399439062,-355.71204263,9.359e-05,2]
[399473988,1766399439072,-200.0,9.359e-05,2]
[399473989,1766399439081,-605.9,9.36e-05,2]
[399473990,1766399439090,-401.70211563,9.36e-05,2]
[399473991,1766399439104,-669.68760418,9.394e-05,2]
[399473992,1766399439113,-839.12376813,9.394e-05,2]
[399473993,1766399439125,-351.43197263,9.394e-05,2]
[399473994,1766399439134,-1382.28974552,9.394e-05,2]
[399473995,1766399439146,-476.09335607,9.394e-05,2]
[399473996,1766399439156,-372.04866899,9.394e-05,2]
[399473997,1766399439166,-263.80710607,9.394e-05,2]
[399473998,1766399439176,-474.85279093,9.394e-05,2]
[399473999,1766399439185,-843.3385567,9.394e-05,2]
[399474000,1766399439194,-769.69126867,9.493e-05,2]
[399474035,1766399440842,-227.83838618,9.493e-05,2]
[399474037,1766399440851,-272.47844507,9.493e-05,2]
[399474038,1766399440860,-997.52965485,9.493e-05,2]
[399474040,1766399440869,-997.52965485,9.493e-05,2]
[399474042,1766399440878,-997.52965485,9.493e-05,2]
[399474043,1766399440887,-997.52965485,9.493e-05,2]
[399474044,1766399440896,-997.52965485,9.493e-05,2]
[399474045,1766399440905,-997.52965485,9.493e-05,2]
[399474046,1766399440914,-997.52965485,9.493e-05,2]
[399474047,1766399440923,-997.52965485,9.493e-05,2]
[399474048,1766399440931,-997.52965485,9.493e-05,2]
[399474049,1766399440940,-997.52965485,9.493e-05,2]
[399474050,1766399440949,-997.52965485,9.493e-05,2]
[399474051,1766399440958,-997.52965485,9.493e-05,2]
[399474052,1766399440967,-997.52965485,9.493e-05,2]
[399474053,1766399440976,-997.52965485,9.493e-05,2]
[399474054,1766399440985,-997.52965485,9.493e-05,2]
[399474055,1766399440993,-997.52965485,9.493e-05,2]
[399474056,1766399441002,-997.52965485,9.493e-05,2]
[399474057,1766399441011,-997.52965485,9.493e-05,2]
[399474058,1766399441020,-997.52965485,9.493e-05,2]
[399474059,1766399441029,-997.52965485,9.493e-05,2]
[399474060,1766399441039,-300.0,9.493e-05,2]
[399474061,1766399441047,-1200.0,9.494e-05,2]
[399474062,1766399441056,-150.94329585,9.494e-05,2]
[399474063,1766399441066,-555.06700655,9.495e-05,2]
[399474064,1766399441075,-317.16214849,9.495e-05,2]
[399474065,1766399441084,-246.679636,9.824e-05,2]
[399474066,1766399441094,-246.679636,9.824e-05,2]
[399474067,1766399441106,-246.679636,9.824e-05,2]
[399474068,1766399441115,-246.679636,9.824e-05,2]
[399474069,1766399441124,-151.0,9.824e-05,2]
[399474070,1766399441133,-246.679636,9.828e-05,2]
[399474071,1766399441143,-246.679636,9.828e-05,2]
[399474072,1766399441152,-246.679636,9.828e-05,2]
[399474073,1766399441160,-246.679636,9.828e-05,2]
[399474074,1766399441170,-151.0,9.828e-05,2]
[399474075,1766399441179,-196.58623149,9.888e-05,2]
[399474076,1766399441188,-353.85521668,9.888e-05,2]
[399474077,1766399441196,-628.44686482,9.888e-05,2]
[399474078,1766399441205,-314.51913059,9.888e-05,2]
[399474079,1766399441214,-359.09098452,9.888e-05,2]
[399474080,1766399441223,-1680.0,9.921e-05,2]
[399474081,1766399441232,-246.679636,9.929e-05,2]
[399474082,1766399441240,-246.679636,9.929e-05,2]
[399474083,1766399441250,-246.679636,9.929e-05,2]
[399474084,1766399441259,-246.679636,9.929e-05,2]
[399474085,1766399441268,-155.658401,9.929e-05,2]
[399474086,1766399441277,-193.4487629,9.929e-05,2]
[399474087,1766399441286,-2709.89793657,9.962e-05,2]
[399474147,1766399443975,-5908.37634892,9.962e-05,2]
[399474148,1766399443987,-300.0,9.962e-05,2]
[399474149,1766399444002,-661.25275491,9.962e-05,2]
[399474150,1766399444022,-172.2080565,9.962e-05,2]
[399474151,1766399444032,-943.53365679,9.962e-05,2]
[399474158,1766399446974,-204.86,8.536e-05,2]
[399474159,1766399446984,-1683.00352311,9.962e-05,2]
[399474160,1766399446994,-2801.40851046,9.962e-05,2]
[399474210,1766400632132,-189.41,8.966e-05,2]
[399474211,1766400632143,-546.0,8.966e-05,2]
[399474212,1766400632153,-139.22818407,8.966e-05,2]
[399474213,1766400632181,-131.69424147,8.966e-05,2]
[399474214,1766400632191,-178.5225551,8.966e-05,4]
[399474231,1766400637715,-781.84131774,8.966e-05,4]
[399474234,1766400637727,-597.64307208,8.966e-05,4]
[399474236,1766400637737,-166.90408557,9e-05,2]
[399474353,1766400642905,-135.09591443,9e-05,2]
[399474354,1766400642914,-265.50397703,9.087e-05,2]
[399474355,1766400642923,-500.0,9.174e-05,2]
[399474356,1766400642933,-500.0,9.174e-05,2]
[399474357,1766400642943,-500.0,9.311e-05,2]
[399474358,1766400642952,-500.0,9.311e-05,2]
[399474359,1766400642961,-300.0,9.349e-05,2]
[399474360,1766400642971,-530.0,9.349e-05,2]
[399474361,1766400642980,-161.45155823,9.35e-05,2]
[399474362,1766400642992,-269.54844177,9.35e-05,2]
[399474363,1766400643001,-150.63964195,9.35e-05,2]
[399474364,1766400643010,-500.0,9.35e-05,2]
[399474365,1766400643020,-500.0,9.35e-05,2]
[399474366,1766400643029,-500.0,9.35e-05,2]
[399474367,1766400643039,-500.0,9.35e-05,2]
[399474368,1766400643048,-500.0,9.35e-05,2]
[399474369,1766400643057,-500.0,9.35e-05,2]
[399474370,1766400643067,-500.0,9.35e-05,2]
[399474371,1766400643076,-461.35114673,9.35e-05,2]
[399474372,1766400643106,-38.64885327,9.35e-05,2]
[399474373,1766400643115,-500.0,9.35e-05,2]
[399474374,1766400643124,-500.0,9.35e-05,2]
[399474375,1766400643137,-448.47416207,9.35e-05,2]
[399474377,1766400643147,-500.0,9.35e-05,2]
[399474378,1766400643156,-434.75516239,9.35e-05,2]
[399474380,1766400643165,-500.0,9.35e-05,2]
[399474382,1766400643175,-500.0,9.35e-05,2]
[399474383,1766400643184,-418.49896138,9.35e-05,2]
[399474384,1766400643194,-500.0,9.35e-05,2]
[399474385,1766400643204,-500.0,9.35e-05,2]
[399474386,1766400643213,-416.90682746,9.35e-05,2]
[399474387,1766400643223,-201.14240852,9.35e-05,2]
[399474388,1766400643232,-500.0,9.35e-05,2]
[399474389,1766400643241,-500.0,9.35e-05,2]
[399474390,1766400643251,-500.0,9.35e-05,2]
[399474391,1766400643260,-500.0,9.35e-05,2]
[399474392,1766400643270,-500.0,9.35e-05,2]
[399474393,1766400643279,-500.0,9.35e-05,2]
[399474394,1766400643289,-500.0,9.35e-05,2]
[399474395,1766400643298,-500.0,9.35e-05,2]
[399474397,1766400643307,-486.26745863,9.35e-05,2]
[399474399,1766400643316,-378.81,9.393e-05,2]
[399474400,1766400643325,-500.0,9.445e-05,2]
[399474401,1766400643334,-295.27941985,9.445e-05,2]
[399474402,1766400643344,-500.0,9.445e-05,2]
[399474403,1766400643354,-500.0,9.445e-05,2]
[399474404,1766400643363,-500.0,9.445e-05,2]
[399474405,1766400643372,-500.0,9.445e-05,2]
[399474406,1766400643382,-500.0,9.445e-05,2]
[399474407,1766400643391,-565.1246691,9.445e-05,2]
[399474408,1766400643401,-500.0,9.445e-05,2]
[399474409,1766400643413,-500.0,9.445e-05,2]
[399474410,1766400643422,-500.0,9.445e-05,2]
[399474411,1766400643432,-500.0,9.448e-05,2]
[399474412,1766400643441,-500.0,9.448e-05,2]
[399474413,1766400643451,-500.0,9.448e-05,2]
[399474414,1766400643461,-150.0,9.448e-05,2]
[399474415,1766400643471,-500.0,9.448e-05,2]
[399474416,1766400643485,-243.04202984,9.448e-05,2]
[399474417,1766400643549,-272.83182917,9.445e-05,2]
[399474451,1766400645895,-227.16817083,9.445e-05,2]
[399474452,1766400645905,-500.0,9.445e-05,2]
[399474453,1766400645915,-500.0,9.445e-05,2]
[399474454,1766400645925,-210.02571347,9.445e-05,2]
[399474455,1766400646219,-289.97428653,9.445e-05,2]
[399474456,1766400646229,-256.95797016,9.448e-05,2]
[399474457,1766400646239,-500.0,9.448e-05,2]
[399474458,1766400646250,-500.0,9.448e-05,2]
[399474459,1766400646260,-157.9049439,9.448e-05,2]
[399474460,1766400646270,-500.0,9.448e-05,2]
[399474461,1766400646279,-150.0,9.448e-05,2]
[399474462,1766400646288,-500.0,9.448e-05,2]
[399474463,1766400646298,-150.0,9.448e-05,2]
[399474464,1766400646307,-500.0,9.448e-05,2]
[399474465,1766400646317,-500.0,9.448e-05,2]
[399474466,1766400646326,-206.43198514,9.448e-05,2]
[399474467,1766400646335,-262.52184855,9.448e-05,2]
[399474468,1766400646345,-150.0,9.448e-05,2]
[399474469,1766400646354,-150.0,9.448e-05,2]
[399474470,1766400646363,-500.0,9.585e-05,2]
[399474471,1766400646373,-500.0,9.585e-05,2]
[399474472,1766400646382,-170.07897238,9.585e-05,2]
[399474473,1766400646392,-500.0,9.585e-05,2]
[399474474,1766400646401,-500.0,9.585e-05,2]
[399474475,1766400646414,-500.0,9.585e-05,2]
[399474476,1766400646424,-500.0,9.585e-05,2]
[399474477,1766400646434,-500.0,9.585e-05,2]
[399474478,1766400646444,-173.91045028,9.585e-05,2]
[399474479,1766400646456,-521.74061938,9.585e-05,2]
[399474480,1766400646466,-500.0,9.585e-05,2]
[399474481,1766400646475,-500.0,9.585e-05,2]
[399474482,1766400646485,-160.22699886,9.585e-05,2]
[399474483,1766400646494,-150.0,9.585e-05,2]
[399474484,1766400646503,-198.8715685,9.585e-05,2]
[399474485,1766400646512,-500.0,9.722e-05,2]
[399474486,1766400646522,-500.0,9.722e-05,2]
[399474487,1766400646533,-500.0,9.722e-05,2]
[399474488,1766400646543,-500.0,9.722e-05,2]
[399474489,1766400646552,-589.74685809,9.722e-05,2]
[399474490,1766400646560,-370.60437313,9.722e-05,2]
[399474491,1766400646569,-500.0,9.722e-05,2]
[399474492,1766400646579,-500.0,9.722e-05,2]
[399474493,1766400646588,-500.0,9.722e-05,2]
[399474494,1766400646597,-150.0,9.722e-05,2]
[399474495,1766400646607,-151.000008,9.722e-05,2]
[399474496,1766400646616,-16.46959918,9.722e-05,2]
[399474497,1766400646627,-176.97916372,9.722e-05,2]
[399474498,1766400646636,-151.0,9.722e-05,2]
[399474499,1766400646645,-151.0,9.722e-05,2]
[399474500,1766400646654,-151.0,9.722e-05,2]
[399474501,1766400646663,-781.97440817,9.742e-05,2]
[399474537,1766401832270,-274.0,8.436e-05,2]
[399474538,1766401832280,-237.06419615,8.436e-05,2]
[399474539,1766401832291,-272.93580385,8.436e-05,2]
[399474540,1766401832300,-538.0,8.436e-05,2]
[399474541,1766401832310,-500.0,8.437e-05,2]
[399474542,1766401832320,-500.0,8.437e-05,2]
[399474543,1766401832329,-500.0,8.437e-05,2]
[399474544,1766401832339,-500.0,8.437e-05,2]
[399474545,1766401832350,-500.0,8.437e-05,2]
[399474546,1766401832359,-500.0,8.437e-05,2]
[399474547,1766401832370,-574.0159996,8.437e-05,2]
[399474548,1766401832379,-500.0,8.437e-05,2]
[399474549,1766401832388,-500.0,8.437e-05,2]
[399474550,1766401832398,-299.29008097,8.437e-05,2]
[399474551,1766401832410,-500.0,8.437e-05,2]
[399474552,1766401832420,-529.14948252,8.437e-05,2]
[399474553,1766401832430,-500.0,8.437e-05,2]
[399474554,1766401832440,-500.0,8.437e-05,2]
[399474555,1766401832450,-500.0,8.437e-05,2]
[399474556,1766401832460,-500.0,8.437e-05,2]
[399474557,1766401832470,-500.0,8.437e-05,2]
[399474558,1766401832481,-500.0,8.437e-05,2]
[399474559,1766401832491,-500.0,8.437e-05,2]
[399474560,1766401832500,-507.85166874,8.437e-05,2]
[399474561,1766401832510,-500.0,8.437e-05,2]
[399474562,1766401832520,-500.0,8.437e-05,2]
[399474563,1766401832531,-500.0,8.437e-05,2]
[399474564,1766401832540,-500.0,8.437e-05,2]
[399474565,1766401832549,-254.24278503,8.437e-05,2]
[399474566,1766401832559,-500.0,8.437e-05,2]
[399474567,1766401832569,-500.0,8.437e-05,2]
[399474568,1766401832578,-500.0,8.437e-05,2]
[399474569,1766401832587,-500.0,8.437e-05,2]
[399474570,1766401832596,-500.0,8.437e-05,2]
[399474571,1766401832605,-500.0,8.437e-05,2]
[399474572,1766401832615,-433.66741842,8.437e-05,2]
[399474573,1766401832819,-500.0,8.437e-05,2]
[399474574,1766401832828,-500.0,8.437e-05,2]
[399474575,1766401832837,-354.32346952,8.437e-05,2]
[399474580,1766401837976,-263.19389749,8.438e-05,2]
[399474581,1766401837986,-151.0,8.439e-05,2]
[399474582,1766401837996,-151.0,8.439e-05,2]
[399474583,1766401838005,-151.0,8.439e-05,2]
[399474584,1766401838014,-151.0,8.439e-05,2]
[399474585,1766401838024,-151.0,8.439e-05,2]
[399474586,1766401838033,-151.0,8.439e-05,2]
[399474587,1766401838042,-151.0,8.439e-05,2]
[399474588,1766401838052,-151.0,8.439e-05,2]
[399474589,1766401838061,-151.0,8.445e-05,2]
[399474590,1766401838070,-161.437083,8.445e-05,2]
[399474592,1766401838080,-2829.21812092,8.445e-05,2]
[399474595,1766401838108,-750.0,8.445e-05,2]
[399474596,1766401838119,-1896.94150928,8.445e-05,2]
[399474598,1766401840087,-3862.229367,8.445e-05,2]
[399474599,1766401840097,-150.41360411,8.757e-05,2]
[399474600,1766401840107,-182.17,8.782e-05,2]
[399474601,1766401840117,-364.35,9.2e-05,2]
[399474602,1766401840126,-150.0,9.448e-05,2]
[399474603,1766401840136,-150.0,9.448e-05,2]
[399474604,1766401840145,-150.0,9.448e-05,2]
[399474605,1766401840155,-500.0,9.448e-05,2]
[399474606,1766401840164,-150.0,9.448e-05,2]
[399474607,1766401840173,-210.0392357,9.448e-05,2]
[399474608,1766401840182,-500.0,9.448e-05,2]
[399474609,1766401840195,-158.18295409,9.448e-05,2]
[399474610,1766401840204,-500.0,9.448e-05,2]
[399474611,1766401840213,-500.0,9.448e-05,2]
[399474612,1766401840223,-500.0,9.448e-05,2]
[399474613,1766401840232,-150.0,9.448e-05,2]
[399474614,1766401840242,-500.0,9.448e-05,2]
[399474615,1766401840252,-500.0,9.448e-05,2]
[399474616,1766401840261,-150.0,9.585e-05,2]
[399474617,1766401840271,-613.77932454,9.585e-05,2]
[399474618,1766401840281,-150.0,9.585e-05,2]
[399474619,1766401840291,-150.0,9.585e-05,2]
[399474620,1766401840300,-150.0,9.585e-05,2]
[399474621,1766401840310,-500.0,9.585e-05,2]
[399474622,1766401840319,-500.0,9.585e-05,2]
[399474623,1766401840329,-500.0,9.585e-05,2]
[399474624,1766401840339,-500.0,9.585e-05,2]
[399474625,1766401840349,-150.0,9.585e-05,2]
[399474626,1766401840363,-500.0,9.585e-05,2]
[399474627,1766401840373,-500.0,9.585e-05,2]
[399474628,1766401840383,-20986.1773728,9.587e-05,2]
[399474629,1766401840392,-710.5421408,9.587e-05,2]
[399474630,1766401840402,-15933.8789065,9.587e-05,2]
[399474631,1766401840412,-1832.4435623,9.587e-05,2]
[399474632,1766401840421,-546.52,9.618e-05,2]
[399474633,1766401840430,-439.19197619,9.663e-05,2]
[399474634,1766401840440,-201.93286099,9.663e-05,2]
[399474635,1766401840449,-151.0,9.663e-05,2]
[399474636,1766401840459,-250.0,9.663e-05,2]
[399474637,1766401840468,-250.0,9.663e-05,2]
[399474638,1766401840477,-250.0,9.663e-05,2]
[399474639,1766401840487,-250.0,9.663e-05,2]
[399474640,1766401840500,-250.0,9.663e-05,2]
[399474641,1766401840509,-250.0,9.663e-05,2]
[399474642,1766401840520,-151.0,9.663e-05,2]
[399474643,1766401840530,-250.0,9.663e-05,2]
[399474644,1766401840539,-553.64373807,9.663e-05,2]
[399474645,1766401840549,-250.0,9.663e-05,2]
[399474646,1766401840559,-250.0,9.663e-05,2]
[399474647,1766401840568,-259.08677053,9.663e-05,2]
[399474648,1766401840578,-250.0,9.663e-05,2]
[399474649,1766401840587,-250.0,9.663e-05,2]
[399474650,1766401840597,-2856.59727776,9.663e-05,2]
[399474651,1766401840606,-250.0,9.663e-05,2]
[399474652,1766401840616,-250.0,9.663e-05,2]
[399474653,1766401840625,-250.0,9.663e-05,2]
[399474654,1766401840634,-250.0,9.663e-05,2]
[399474655,1766401840644,-250.0,9.663e-05,2]
[399474656,1766401840654,-250.0,9.663e-05,2]
[399474657,1766401840664,-250.0,9.663e-05,2]
[399474658,1766401840674,-250.0,9.663e-05,2]
[399474659,1766401840683,-250.0,9.663e-05,2]
[399474660,1766401840692,-250.0,9.663e-05,2]
[399474661,1766401840702,-250.0,9.663e-05,2]
[399474662,1766401840715,-250.0,9.663e-05,2]
[399474663,1766401840725,-250.0,9.663e-05,2]
[399474664,1766401840735,-217.48125786,9.69e-05,2]
[399474671,1766401843126,-500.0,9.448e-05,2]
[399474672,1766401843136,-500.0,9.585e-05,2]
[399474673,1766401843146,-988.69938894,9.69e-05,2]
[399474674,1766401843155,-150.0,9.722e-05,2]
[399474675,1766401843164,-150.0,9.722e-05,2]
[399474676,1766401843174,-150.0,9.722e-05,2]
[399474677,1766401843183,-218.97290055,9.722e-05,2]
[399474678,1766401843192,-500.0,9.722e-05,2]
[399474679,1766401843201,-500.0,9.722e-05,2]
[399474680,1766401843211,-500.0,9.722e-05,2]
[399474681,1766401843220,-500.0,9.722e-05,2]
[399474682,1766401843230,-150.0,9.722e-05,2]
[399474683,1766401843239,-500.0,9.722e-05,2]
[399474684,1766401843248,-751.5551774,9.73e-05,2]
[399474685,1766401843257,-1000.0,9.742e-05,2]
[399474686,1766401843267,-1000.0,9.742e-05,2]
[399474687,1766401843281,-1000.0,9.742e-05,2]
[399474688,1766401843291,-1000.0,9.742e-05,2]
[399474689,1766401843301,-1000.0,9.742e-05,2]
[399474690,1766401843311,-1000.0,9.742e-05,2]
[399474691,1766401843320,-520.66373744,9.742e-05,2]
[399474692,1766401843356,-479.33626256,9.742e-05,2]
[399474693,1766401843365,-308.04819412,9.742e-05,2]
[399474697,1766401846183,-652.0,9.742e-05,2]
[399474698,1766401846342,-39.95180588,9.742e-05,2]
[399474699,1766401846353,-1000.0,9.742e-05,2]
[399474700,1766401846363,-649.11258047,9.742e-05,2]
[399474701,1766401846374,-1000.0,9.742e-05,2]
[399474702,1766401846384,-1000.0,9.742e-05,2]
[399474703,1766401846395,-1000.0,9.742e-05,2]
[399474704,1766401846405,-112.71283672,9.742e-05,2]
[399475253,1766402859484,150.0,0.00011849,30]
[399475254,1766402859900,150.0,0.00012414,30]
[399475255,1766402860304,216.34,0.00012978,30]
[399475256,1766402860691,288.45,0.00013542,30]
[399475260,1766402987927,200.0,0.00015,120]
[399475261,1766403015539,150.0,0.00014,30]
[399475494,1766403038099,-300.0,8.426e-05,2]
[399475495,1766403038110,-300.0,8.426e-05,2]
[399475496,1766403038119,-300.0,8.426e-05,2]
[399475497,1766403038129,-299.0,8.426e-05,2]
[399475498,1766403038139,-300.0,8.426e-05,2]
[399475499,1766403038148,-409.34796409,8.426e-05,2]
[399475500,1766403038160,-790.65203591,8.426e-05,2]
[399475501,1766403038169,-538.0,8.426e-05,2]
[399475502,1766403038179,-301.30548032,8.426e-05,2]
[399475503,1766403038189,-500.0,8.426e-05,2]
[399475504,1766403038199,-500.0,8.426e-05,2]
[399475505,1766403038208,-500.0,8.426e-05,2]
[399475506,1766403038218,-500.0,8.426e-05,2]
[399475507,1766403038228,-500.0,8.426e-05,2]
[399475508,1766403038238,-535.18041397,8.426e-05,2]
[399475509,1766403038247,-500.0,8.426e-05,2]
[399475510,1766403038257,-500.0,8.426e-05,2]
[399475511,1766403038268,-500.0,8.426e-05,2]
[399475512,1766403038278,-500.0,8.426e-05,2]
[399475513,1766403038287,-500.0,8.426e-05,2]
[399475514,1766403038297,-500.0,8.426e-05,2]
[399475515,1766403038307,-500.0,8.426e-05,2]
[399475516,1766403038316,-500.0,8.426e-05,2]
[399475517,1766403038326,-500.0,8.426e-05,2]
[399475518,1766403038336,-169.90549806,8.426e-05,2]
[399475519,1766403038346,-500.0,8.426e-05,2]
[399475520,1766403038356,-500.0,8.426e-05,2]
[399475521,1766403038366,-500.0,8.426e-05,2]
[399475522,1766403038375,-500.0,8.426e-05,2]
[399475523,1766403038385,-500.0,8.426e-05,2]
[399475524,1766403038395,-554.7219034,8.426e-05,2]
[399475525,1766403038404,-500.0,8.426e-05,2]
[399475526,1766403038414,-500.0,8.426e-05,2]
[399475527,1766403038424,-500.0,8.426e-05,2]
[399475528,1766403038433,-500.0,8.426e-05,2]
[399475529,1766403038442,-500.0,8.426e-05,2]
[399475530,1766403038452,-500.0,8.426e-05,2]
[399475531,1766403038462,-500.0,8.426e-05,2]
[399475532,1766403038471,-500.0,8.426e-05,2]
[399475533,1766403038481,-500.0,8.426e-05,2]
[399475534,1766403038491,-500.0,8.426e-05,2]
[399475535,1766403038500,-500.0,8.426e-05,2]
[399475536,1766403038510,-1200.0,8.427e-05,2]
[399475537,1766403038519,-275.33001954,8.428e-05,2]
[399475538,1766403038529,-47461.94860064,8.428e-05,2]
[399475539,1766403038538,-154.89831664,8.431e-05,2]
[399475540,1766403038548,-430.1933,8.434e-05,2]
[399475541,1766403038558,-634.66330894,8.436e-05,2]
[399475542,1766403038567,-150.19249166,8.747e-05,2]
[399475543,1766403038577,-158.02,8.748e-05,2]
[399475544,1766403038586,-2103.25976549,8.902e-05,2]
[399475545,1766403038595,-12045.4576126,9.065e-05,2]
[399475546,1766403038604,-316.04,9.165e-05,2]
[399475547,1766403038857,-420.0,9.269e-05,2]
[399475548,1766403038866,-1680.0,9.269e-05,2]
[399475549,1766403038888,-687.0,9.27e-05,2]
[399475550,1766403038898,-553.64373807,9.396e-05,2]
[399475551,1766403038907,-210.87564647,9.396e-05,2]
[399475552,1766403038916,-500.0,9.396e-05,2]
[399475553,1766403038926,-250.0,9.396e-05,2]